[Event "German Cup 2019"]
[Site "Magdeburg"]
[Date "2019.06.01"]
[Round "5.1"]
[White "Meyer-Dunker, Paul"]
[Black "Bold, Andre"]
[Result "1/2-1/2"]
[ECO "B13"]
[WhiteElo "2062"]
[BlackElo "2064"]
[Annotator "NA"]
[PlyCount "112"]
[EventDate "2019.05.30"]
[EventType "k.o."]
[EventCountry "GER"]
[SourceTitle "playchess.com"]
[Source "ChessBase"]
[SourceQuality "1"]
[TimeControl "40/5400+30:900+30"]

1. e4 {[%emt 0:00:00]} c6 {[%emt 0:00:00]} 2. d4 {[%emt 0:00:00]} d5 {[%emt 0:00:00]} 3. exd5 {[%emt 0:00:00]} cxd5 {[%emt 0:00:00]} 4. Bd3 {[%emt 0:00:00]} Nc6 {[%emt 0:00:00]} 5. c3 {[%emt 0:00:00]} Nf6 {[%emt 0:00:00]} 6. Bf4 {[%emt 0:00:00]} Bg4 {[%emt 0:00:00]} 7. Qb3 {[%emt 0:00:00]} Qd7 {[%emt 0:00:00]} 8. Nd2 {[%emt 0:00:01]} e6 {[%emt 0:00:00]} 9. Ngf3 {[%emt 0:00:07]} Bxf3 {[%emt 0:00:00]} 10. Nxf3 {[%emt 0:00:11]} Bd6 {[%emt 0:00:05]} 11. Bxd6 {[%emt 0:01:41]} Qxd6 {[%emt 0:00:03]} 12. O-O {[%emt 0:00:14]} O-O {[%emt 0:00:03]} 13. Rae1 {[%emt 0:00:18]} Qc7 {[%emt 0:00:05] B13: Caro-Kann: Exchange Variation and Panov-Botvinnik Attack} (13... Rab8 14. Ne5 Qc7 15. f4 b5 16. a3 a5 17. Qc2 Rfc8 18. Qf2 b4 19. axb4 axb4 20. f5 bxc3 21. bxc3 {½-½ (30) Aravindh,C (2599)-Andreikin,D (2725) Astana 2019}) 14. Qd1 {[%emt 0:01:43] [#]} Rae8 $146 {[%emt 0:09:42]} ({Predecessor:} 14... h6 15. Ne5 Nxe5 16. dxe5 Nd7 17. f4 f5 18. exf6 Rxf6 19. Qg4 Qb6+ 20. Rf2 Rd8 21. g3 {½-½ (50) Gazik,V (2414)-Polak,T (2511) Bojnice 2016}) 15. Qe2 {[%emt 0:05:30]} h6 {[%emt 0:03:23]} 16. Ne5 {[%emt 0:00:23]} Nd7 {[%emt 0:00:05]} 17. f4 {[%emt 0:02:45]} f5 {[%emt 0:00:20]} 18. Ng6 {[%emt 0:11:25]} Rf6 {[%emt 0:04:36]} 19. Qh5 {[%emt 0:05:48]} Kh7 {[%emt 0:07:03]} 20. Nh4 {[%emt 0:07:15]} g6 {[%emt 0:10:26]} 21. Nxg6 {[%emt 0:02:07]} Rxg6 {[%emt 0:00:07]} 22. Bxf5 {[%emt 0:00:12]} exf5 {[%emt 0:00:02]} 23. Rxe8 {[%emt 0:00:09]} Nf6 {[%emt 0:00:03]} 24. Rh8+ {[%emt 0:00:09]} Kg7 {[%emt 0:02:01]} 25. Qxf5 {[%emt 0:00:29]} Ne7 {[%emt 0:04:14]} 26. Qe5 {[%emt 0:00:06]} Qxe5 {[%emt 0:00:21]} 27. fxe5 {[%emt 0:00:07]} Nfg8 {[%emt 0:00:06]} 28. Rxg8+ {[%emt 0:01:19]} Kxg8 {[%emt 0:00:37]} 29. g3 {[%emt 0:03:55]} Ra6 {[%emt 0:00:45]} 30. Ra1 {[%emt 0:08:39]} Rb6 {[%emt 0:00:06]} 31. b3 {[%emt 0:00:35]} Rc6 {[%emt 0:00:27]} 32. Rc1 {[%emt 0:03:08]} Nf5 {[%emt 0:00:09]} 33. Rf1 {[%emt 0:01:07]} Ne3 {[%emt 0:00:37]} 34. Rc1 {[%emt 0:03:23]} b5 {[%emt 0:20:56]} 35. Kf2 {[%emt 0:07:53]} Rxc3 {[%emt 0:41:08]} 36. Rxc3 {[%emt 0:04:19]} Nd1+ {[%emt 0:00:00]} 37. Kf3 {[%emt 0:00:24]} Nxc3 {[%emt 0:00:00]} 38. Kf4 {[%emt 0:03:34]} Nxa2 {[%emt 0:00:00]} 39. e6 {[%emt 0:00:41]} Kf8 {[%emt 0:00:00]} 40. g4 {[%emt 0:06:59]} Nb4 {[%emt 0:00:00]} 41. Ke5 {[%emt 0:19:33]} a5 {[%emt 0:01:17]} 42. h4 {[%emt 0:03:09]} a4 {[%emt 0:02:30]} 43. bxa4 {[%emt 0:00:16]} bxa4 {[%emt 0:00:04]} 44. g5 {[%emt 0:00:34]} a3 {[%emt 0:00:50]} 45. gxh6 {[%emt 0:04:44]} a2 {[%emt 0:00:08]} 46. e7+ {[%emt 0:00:42]} Kxe7 {[%emt 0:00:06]} 47. h7 {[%emt 0:00:06]} a1=Q {[%emt 0:00:03]} 48. h8=Q {[%emt 0:00:29]} Qe1+ {[%emt 0:01:35]} 49. Kf5 {[%emt 0:01:30]} Qf2+ {[%emt 0:00:19]} 50. Kg5 {[%emt 0:01:52]} Qg3+ {[%emt 0:02:20]} 51. Kf5 {[%emt 0:01:33]} Qf3+ {[%emt 0:00:18]} 52. Kg5 {[%emt 0:01:57]} Qe3+ {[%emt 0:04:10]} 53. Kf5 {[%emt 0:01:32]} Qe4+ {[%emt 0:02:09]} 54. Kg5 {[%emt 0:00:15]} Qe3+ {[%emt 0:03:42]} 55. Kf5 {[%emt 0:00:06]} Qe6+ $19 {[%emt 0:00:37]} 56. Kg5 {[%emt 0:00:37]} Qe3+ {[%emt 0:01:57]} 1/2-1/2